Cogmind - Beta 14 @@@ ROGUE MODE // 2024.08.19 @ 13:25:18 Player: Triffids Result: Self-destructed Performance ------------- Evolutions (1) 500 Regions Visited (2) 400 Robots Destroyed (14) 70 Value Destroyed (368) 368 Prototype IDs (2) 40 Alien Tech Used (0) 0 Bonus (0) 0 TOTAL SCORE: 1378 Bonus ------- None Cogmind --------- Core Integrity 299/400 Matter 290/300 Energy 230/250 System Corruption 0% Temperature Cool (0) Movement Walking (120) Location -9/Materials Parts ------- > --- POWER (1) -------- Ion Engine > --- PROPULSION (4) --- Light Treads Aluminum Leg Aluminum Leg Aluminum Leg > --- UTILITY (2) ------ Seismic Detector Light Armor Plating > --- WEAPON (2) ------- Heavy EM Pulse Gun Beam Rifle > --- INVENTORY (5) ---- Light Ion Engine Improved Heat Sink Sensor Array Signal Interpreter Light Armor Plating Peak State ------------ > --- POWER ------------ Ion Engine > --- PROPULSION ------- Aluminum Leg Aluminum Leg Aluminum Leg Improved Hover Unit > --- UTILITY ---------- Cooling System Light Armor Plating > --- WEAPON ----------- Heavy EM Pulse Gun Particle Gun > --- INVENTORY -------- Ion Engine Signal Interpreter Seismic Detector Light Armor Plating Mining Laser [Rating: 13] Favorites ----------- Power Ion Engine Engine Ion Engine Propulsion Aluminum Leg Treads Light Treads Leg Aluminum Leg Hover Unit Improved Hover Unit Utility Light Armor Plating Device Seismic Detector Protection Light Armor Plating Weapon Beam Rifle Energy Gun Beam Rifle Ballistic Gun Light Assault Rifle Special Weapon Plasma Cutter Build | -11 -10 -9 ------- Run | Yrd Mat Mat Slots Evolved 2 | . . 2 Power . | . . . Propulsion 2 | . . 2 Utility . | . . . Weapon . | . . . Parts Attached 31 | 6 2 23 Power 1 | 1 . . Engine 1 | 1 . . Core . | . . . Reactor . | . . . Propulsion 9 | 2 . 7 Treads 1 | . . 1 Leg 7 | 2 . 5 Wheel . | . . . Hover 1 | . . 1 Flight . | . . . Utility 11 | 1 1 9 Device 9 | 1 . 8 Storage . | . . . Processor . | . . . Hackware . | . . . Protection 2 | . 1 1 Artifact . | . . . Weapon 10 | 2 1 7 Energy Gun 6 | 1 . 5 Energy Cannon . | . . . Ballistic Gun 2 | 1 . 1 Ballistic Cannon . | . . . Launcher . | . . . Special Weapon 2 | . 1 1 Impact Weapon . | . . . Slashing Weapon . | . . . Piercing Weapon . | . . . Special Melee Weapon . | . . . Unidentified Prototypes . | . . . Parts Lost . | . . . Power . | . . . Propulsion . | . . . Utility . | . . . Weapon . | . . . Highest Loss Streak . | . . . To Critical Strikes . | . . . Average Slot Usage (%) 98 | . 99 98 Engine 11 | . 14 11 Treads 5 | . . 7 Leg 31 | . 28 33 Hover 1 | . . 1 Device 11 | . 14 11 Protection 11 | . 13 11 Energy Gun 17 | . 14 18 Ballistic Gun 3 | . 12 . Special Weapon 2 | . 1 3 Peak Build Rating 13 | 6 7 13 Average Rating 9 | 4 6 11 On Entrance 4 | . 6 7 Naked Turns . | . . . Heaviest Build 16 | 9 12 16 Greatest Support 30 | 20 20 30 Greatest Overweight (x) 1 | . . 1 Average Overweight (x) . | . . . Largest Inventory Capacity 5 | 5 5 5 Average Capacity 5 | 5 5 5 Most Carried 5 | 5 5 5 Average Carried 4 | 2 4 4 Final Capacity 5 | 5 5 5 Final Carried 5 | 3 5 5 Class Distribution -------------------- 69% | Mutant 30% | Scavenger-Mutant Dominant Class ---------------- Mutant | -10/Materials Mutant | -9/Materials Resources | -11 -10 -9 ----------- Run | Yrd Mat Mat Matter Collected 501 | 242 . 259 Remotely . | . . . Salvage Created 475 | 18 . 457 Parts 36 | 4 . 32 Haulers Intercepted 1 | . . 1 Recyclers Shooed . | . . . Parts Field Recycled . | . . . Retrieved Matter . | . . . Parts Self-Destructed . | . . . Prevented . | . . . Kills | -11 -10 -9 ------- Run | Yrd Mat Mat Combat Hostiles Destroyed 11 | . . 11 Guns 10 | . . 10 Cannons 1 | . . 1 Classes Destroyed 6 | 1 . 5 Tunneler 1 | 1 . . Hauler 1 | . . 1 Watcher 1 | . . 1 Swarmer 4 | . . 4 Grunt 5 | . . 5 Sentry 2 | . . 2 Best Kill Streak 7 | 1 . 7 Combat Bots Only 7 | . . 7 Max Kills in Single Turn 1 | 1 . 1 Gunslinging . | . . . Exploded . | . . . Melee . | . . . Uniques/NPCs Destroyed . | . . . Combat | -11 -10 -9 -------- Run | Yrd Mat Mat Hostile Shots Fired 72 | . . 72 Missed 23 | . . 23 Damage Taken 555 | . . 555 Core 101 | . . 101 Absorbed by Shields . | . . . Core Remaining (%) 100 | 100 100 . Volleys Fired 29 | 1 1 27 Largest 2 | 2 1 2 Hottest 110 | 70 100 110 Shots Fired 57 | 2 1 54 Gun 54 | 2 . 52 Cannon . | . . . Launcher . | . . . Special 3 | . 1 2 Kinetic 1 | 1 . . Thermal 29 | 1 1 27 Explosive . | . . . Electromagnetic 27 | . . 27 Robot Hit Streak 11 | 1 . 11 Robot Miss Streak 3 | . . 3 Penetration Max . | . . . Secondary Targets 1 | . . 1 Max Gunslinging Chain 1 | . . 1 Shots Hit Robots 36 | 1 . 35 Core Hits 17 | 1 . 16 Critical Kills . | . . . Critical Parts Destroyed . | . . . Critical Strikes 2 | . . 2 Burn 2 | . . 2 Melee Attacks . | . . . Impact . | . . . Slashing . | . . . Piercing . | . . . Sneak Attacks . | . . . Combat Hostiles . | . . . Follow-up Attacks . | . . . Damage Inflicted 597 | 13 . 584 Guns 551 | 13 . 538 Cannons . | . . . Explosions 34 | . . 34 Melee . | . . . Ramming . | . . . Kinetic . | . . . Thermal 283 | 13 . 270 Explosive . | . . . Electromagnetic 314 | . . 314 Impact . | . . . Slashing . | . . . Piercing . | . . . Highest Corruption . | . . . Average Corruption . | . . . Corruption Purged . | . . . Corruption Blocked . | . . . Overload Shots . | . . . Overflow Damage . | . . . Projectiles . | . . . Explosions . | . . . Melee . | . . . Knockbacks . | . . . Impact . | . . . Kinetic . | . . . Secondary . | . . . Self-Inflicted Damage 37 | . . 37 Shots 1 | . . 1 Rammed . | . . . Targets Rammed . | . . . Kicked . | . . . Crushed . | . . . Highest Temperature 136 | 30 32 136 Average Temperature 39 | 19 16 44 Received Heat Transfer 108 | . . 108 Siege Activations . | . . . Robots Corrupted . | . . . Combat Hostiles . | . . . Parts Fried 2 | . . 2 Impact Corruptions . | . . . Robots Melted . | . . . Combat Hostiles . | . . . Parts Melted 2 | . . 2 Heat Transferred 790 | 37 . 753 Parts Sabotaged . | . . . Parts Stolen . | . . . Parts Stripped . | . . . Power Chain Reactions 1 | . . 1 Alert | -11 -10 -9 ------- Run | Yrd Mat Mat Peak Influence 268 | 5 33 268 Initial 13 | . 3 13 Average 83 | 3 21 115 Maximum Alert Level 1 | . . 1 Low Security (%) 86 | 100 100 80 Level 1 13 | . . 19 Level 2 . | . . . Level 3 . | . . . Level 4 . | . . . Level 5 . | . . . High Security . | . . . Max Security . | . . . Squads Dispatched 1 | . . 1 Investigation 1 | . . 1 Extermination . | . . . Reinforcement . | . . . Assault . | . . . Garrison . | . . . Intercept . | . . . Searches Triggered . | . . . Construction Impeded . | . . . Haulers Reinforced . | . . . Active Scanning Responses . | . . . Cargo Convoy Interrupts . | . . . Stealth | -11 -10 -9 --------- Run | Yrd Mat Mat Distress Signals 1 | . . 1 Communications Jammed . | . . . Distress Signals . | . . . Times Spotted 16 | . . 16 Peak Tracking Total 7 | . . 7 Tactical Retreats 2 | . . 2 Traps | -11 -10 -9 ------- Run | Yrd Mat Mat Traps Triggered . | . . . Indirectly . | . . . Trap Hack Attempts . | . . . Triggered . | . . . Disarmed . | . . . Reprogrammed . | . . . Reused . | . . . Traps Extracted . | . . . Installed . | . . . Triggered . | . . . Machines | -11 -10 -9 ---------- Run | Yrd Mat Mat Machines Disabled 3 | . . 3 Max in Single Turn 1 | . . 1 Machines Repaired . | . . . Machines Dismantled 3 | . . 3 Machines Sabotaged . | . . . Overloaded Fab Kills . | . . . Hacking | -11 -10 -9 --------- Run | Yrd Mat Mat Machines Accessed 7 | . 4 3 Terminals 7 | . 4 3 Fabricators . | . . . Repair Stations . | . . . Recycling Units . | . . . Scanalyzers . | . . . Garrison Access . | . . . Total Hacks 27 | . 16 11 Successful 10 | . 7 3 Failed 17 | . 9 8 Catastrophic 2 | . 1 1 Database Lockouts . | . . . Manual 21 | . 12 9 Terminals 27 | . 16 11 Fabricators . | . . . Repair Stations . | . . . Recycling Units . | . . . Scanalyzers . | . . . Garrison Access . | . . . Terminal Hacks 6 | . 5 1 Robot Analysis 2 | . 2 . Prototype ID Bank 1 | . 1 . Emergency Access Points 1 | . . 1 Locate Traps 2 | . 2 . Fabricator Hacks . | . . . Repair Station Hacks . | . . . Recycling Unit Hacks . | . . . Scanalyzer . | . . . Garrison Access Hacks . | . . . Unauthorized Hacks 4 | . 2 2 Terminals 4 | . 2 2 Botnet 3 | . 2 1 Disrupt 1 | . . 1 Fabricators . | . . . Repair Stations . | . . . Recycling Units . | . . . Scanalyzers . | . . . Garrison Access . | . . . Data Cores Recovered . | . . . Used . | . . . Hacking Detections 7 | . 4 3 Full Trace Events 1 | . . 1 Feedback Events . | . . . Feedback Blocked . | . . . Robot Schematics Acquired . | . . . Robots Built . | . . . Authchips . | . . . Time . | . . . Total Robot Build Rating . | . . . Part Schematics Acquired . | . . . Parts Built . | . . . Authchips . | . . . Time . | . . . Total Part Build Rating . | . . . Parts Repaired . | . . . Time . | . . . Parts Recycled . | . . . Recycled Matter . | . . . Retrieved Matter . | . . . Retrieved Components . | . . . Parts Scanalyzed . | . . . Part Schematics Acquired . | . . . Parts Damaged . | . . . Bothacking | -11 -10 -9 ------------ Run | Yrd Mat Mat Used RIF Installer . | . . . Robots Hacked . | . . . Non-combat . | . . . Combat . | . . . Robot Hacks Applied . | . . . Relay Couplers Released . | . . . Fabnet Peak Effective % . | . . . Robots Rewired . | . . . Allies Hacked . | . . . Hacks Repelled . | . . . Allies | -11 -10 -9 -------- Run | Yrd Mat Mat Total Allies . | . . . Largest Group . | . . . Highest-Rated Group . | . . . Highest-Rated Ally . | . . . Total Orders . | . . . Ally Attacks . | . . . Total Damage . | . . . Kills . | . . . Allies Corrupted . | . . . Allies Melted . | . . . Intel | -11 -10 -9 ------- Run | Yrd Mat Mat Robot Analysis Total 2 | . 2 . Derelict Logs Recovered . | . . . Drone Launches . | . . . Drone Recoveries . | . . . Exploration | -11 -10 -9 ------------- Run | Yrd Mat Mat Turns Passed 850 | 58 217 575 Spaces Moved 505 | 44 173 288 Core 17 | 17 . . Treads . | . . . Legs 488 | 27 173 288 Wheels . | . . . Hover . | . . . Flight . | . . . Fastest Speed 50 | 50 120 120 Average Speed 117 | 92 120 120 Slowest Speed 190 | 120 120 190 Overloaded Moves . | . . . Propulsion Burnouts . | . . . Robots Hopped . | . . . Cave-ins Triggered . | . . . Exploration Rate (%) 19 | 3 32 23 Regions Visited 2 Branch Regions . Pre-discovered Areas . | . . . Known Exits Taken . | . . . Unknown Exits Taken 2 | 1 1 . Scrap Searched . | . . . Spaces Dug 1 | . 1 . Terrain Destroyed 4 | . 1 3 Melee . | . . . Projectile 1 | . 1 . AOE 3 | . . 3 Terrain Rammed . | . . . Walls Destroyed . | . . . Machines Disabled . | . . . Actions | -11 -10 -9 --------- Run | Yrd Mat Mat Total 646 | 58 179 409 Wait 31 | 1 . 30 Move 503 | 43 172 288 Hop . | . . . Pick Up 15 | 7 3 5 Fast Attach 4 | 2 1 1 Attach 5 | 4 . 1 Detach . | . . . Swap 22 | . 1 21 Drop 12 | . 1 11 Fire 29 | 1 1 27 Melee . | . . . Ram . | . . . Kick . | . . . Crush . | . . . Escape Stasis . | . . . Rewire . | . . . Trap . | . . . Miscellaneous 25 | . . 25 Route ------- -11/Scrapyard -10/Materials -9/Materials History --------- Turn | Location | Event 5 | -11/Scrapyard | Discovered new exit (range 15) 59 | -11/Scrapyard | Entered Materials 147 | -10/Materials | Discovered new exit (range 13) 276 | -10/Materials | Entered another Materials area 276 | -9/Materials | Evolved 2 slots: Propulsion x2 313 | -9/Materials | Build established: Mutant 825 | -9/Materials | Destroyed 7 combat bots 851 | -9/Materials | Self-destructed Last Messages --------------- 00777_ U-05 Engineer lays Concrete. 00785_ S-10 Pest destroyed. 00787_ U-05 Engineer builds a Wall. 00789_ G-34 Mercenary destroyed. 00798_ G-34 Mercenary suffers critical hit (Burn). 00798_ G-34 Mercenary destroyed. 00801_ S-10 Pest destroyed. 00804_ G-34 Mercenary destroyed. 00805_ U-05 Engineer lays Concrete. 00808_ Dropped Lgt. Armor Plating. 00811_ Acquired 40 matter. 00813_ Dropped Aluminum Leg. 00821_ Dropped Plasma Cutter. 00821_ K-01 Serf collects debris. 00821_ Acquired 17 matter. 00824_ Acquired Lgt. Ion Engine. 00825_ K-01 Serf collects debris. 00828_ Acquired 12 matter. 00831_ Acquired 1 matter. 00832_ K-01 Serf collects debris. Map ----- +----------------------------------------------------+ | ????????????????????????????????????????????? | | ????????????????????????????????????????????? | | ##########??????????????????????????????????? | | # #??????????????????????????????????? | | # """ #######????????????????????????????? | | # """ # #????????????????????????????? | | # ! """*#% #????????????????????????????? | | # [+ #????????????????????????????? | | # ! " #= #????????????????????????????? | | # !# #????????????????????????????? | | # " " ### ###????????????????????????????? | | # #?# #?#######?????#????????????????? | | ############ ### #####"#####????????????? | | ??????????# * "%" ????????????? | | ########### % " ^ ???????????? | | # # | ????????????? | | # # ## #######+#??????????????? | | # # ####/#####????????????????????? | | # + # k #????????????????????? | | # # # #????????????????????? | | # # # #????????????????????? | | # # # u #????????????????????? | | # # # #????????????????????? | | #####+##### # #????????????????????? | | ????# # #????????????????????? | | ????####### # @ #????????????????????? | | ????????### # #????????????????????? | | ????????# # ######+###????????????????????? | | ????????# + #????# #??????????????????????? | | ????????# # #????# #??????????????????????? | | ########### ##?### ##########?????????????? | | # # #?# # """" #?????????????? | | #= # ### # """ #?????????????? | | # ] + + "" #?????????????? | | # ! ]# ### # #?????????????? | | # # #?# # #?????????????? | | # #######?## ## #?????????????? | | # ! #????????# #########?????????????? | | # #???????## #?????????????????????? | | # [ #??####### #?????????????????????? | | ########+#??# %[ =%#?????????????????????? | | ???##### #### ######+#######????????????????? | | ???# != =#!!% [*=%! #????????????????? | | ???# [+ "== """ [! #????????????????? | | ???# """ [# T=*[""" [ ##???????????????? | | ???# """ # "|*[""" [ #???????????????? | | ???# """ # =[ ##???????????????? | | ???# """ ##############????????????????? | | ???# #?????????????????????????????? | | ???# #?????????????????????????????? | +----------------------------------------------------+ Best States ------------- Heat Dissipation 50 Energy Generation 10 Energy Capacity 250 Matter Stores 300 Matter Capacity 300 Sight Range 16 Terrain Scan Density 10 Armor Coverage 150 Evasion (%) 55 Item Schematics ----------------- None Robot Schematics ------------------ None Fabricated ------------ Nothing Alien Tech Used ----------------- None Achievements -------------- None Challenges ------------ None Game ------ Seed SensorResetLeg Manual? 0 Play Time 00:16:54 Cumulative 209.9 hours Start 2024.08.16 @ 13:41:19 End 2024.08.19 @ 13:25:18 Sessions 3 Manual Loads 0 Difficulty Rogue Special Mode None Game No. 346 Rogue 346 Adventurer 0 Explorer 0 Win Type - Total 1 Types 1/0/0/0/0/0/0/0/0 Lore% 29 Gallery% 51 Achievement% 38 Wizard Run 0 Options --------- Layout 1 ASCII 0 Keyboard 1 Movement Vi Keybinds 0 Fullscreen 0 Font 20/SmallcapsGlow Map View 59x39 Zoom Use 0% Tactical HUD 1 Map Filters NONE Filters NONE Steam 1 RUN: ff66c7c0-bedb-432b-aa5d-751bf82ea06c